bitfinex/quotes_SOLUSD_20241231
["timestamp","ask_amount","ask_price","bid_price","bid_amount"]
[1735616107167,20.0,191.01,190.92,10.59261274]
[1735616107673,20.0,191.01,190.91,10.59261274]
[1735616108377,20.0,191.01,190.92,10.59261274]
[1735616110869,20.0,191.01,190.93,10.59261274]
[1735616112072,1.5483,191.08,190.95,12.11811274]
[1735616112240,20.0,191.06,190.95,12.11811274]
[1735616113275,20.0,191.06,190.95,1.5255]
[1735616114045,20.0,191.06,190.95,12.11811274]
[1735616114769,20.0,191.02,190.95,1.5255]
[1735616116982,20.0,191.02,190.91,10.59261274]
[1735616118373,20.0,191.02,190.92,10.59261274]
[1735616118582,20.0,191.02,190.93,10.59261274]
[1735616121288,20.0,191.02,190.9,8.0057]
[1735616121486,20.0,191.02,190.9,1.5255]
[1735616121487,20.0,190.98,190.9,1.5255]
[1735616121978,1.5571,191.01,190.92,10.59261274]
[1735616122558,1.5571,191.05,190.93,10.59261274]
[1735616122763,20.0,191.02,190.93,10.59261274]
[1735616122984,20.0,191.02,190.91,10.59261274]
[1735616123866,20.0,190.98,190.9,1.5255]
[1735616124161,20.0,190.98,190.9,12.11811274]
[1735616124367,20.0,190.98,190.91,10.59261274]
[1735616124768,43.776884,191.03,190.91,10.59261274]
[1735616124970,20.0,190.98,190.9,1.5255]
[1735616128475,20.0,190.98,190.9,12.11811274]
[1735616129499,20.0,190.98,190.9,1.5255]
[1735616129792,20.0,190.98,190.9,12.11811274]
[1735616130395,20.0,190.98,190.9,1.5255]
[1735616130590,20.0,190.98,190.85,8.0192]
[1735616130799,20.0,190.96,190.87,10.59261274]
[1735616132390,20.0,190.96,190.86,10.59261274]
[1735616133066,20.0,190.96,190.85,8.0192]
[1735616133067,20.0,190.96,190.87,10.59261274]
[1735616133371,20.0,190.96,190.88,10.59261274]
[1735616133765,20.0,190.96,190.87,10.59261274]
[1735616134493,20.0,190.96,190.86,10.59261274]
[1735616135692,20.0,190.96,190.85,8.0192]
[1735616135894,22.6184,190.96,190.85,1.5255]
[1735616136203,20.0,190.92,190.85,1.5255]
[1735616137795,2.6184,190.96,190.85,1.5255]
[1735616137983,20.0,190.96,190.85,12.11811274]
[1735616139292,20.0,190.96,190.86,10.59261274]
[1735616139495,1.5822,190.99,190.89,10.59261274]
[1735616139799,2.6175,191.02,190.9,10.59261274]
[1735616140001,23.776884,191.01,190.9,10.59261274]
[1735616140374,23.776884,191.01,190.89,10.59261274]
[1735616140894,23.776884,191.01,190.87,0.78569245]
[1735616140895,20.0,190.98,190.85,12.11811274]
[1735616141097,20.0,190.98,190.85,1.5255]
[1735616143302,20.0,190.94,190.85,1.5255]
[1735616143506,20.0,190.93,190.85,1.5255]
[1735616144200,20.0,190.93,190.83,6.2592]
[1735616144378,20.0,190.93,190.82,11.37822664]
[1735616144582,20.0,190.93,190.82,10.59261274]
[1735616146476,20.0,190.93,190.81,10.59261274]
[1735616147706,20.0,190.93,190.82,10.59261274]
[1735616149391,20.0,190.93,190.8,1.5255]
[1735616149690,20.0,190.93,190.8,12.11811274]
[1735616150796,20.0,190.89,190.8,1.5255]
[1735616152403,21.5579,190.89,190.75,15.41762761]
[1735616152576,27.7626,190.89,190.77,10.59261274]
[1735616153080,20.0,190.85,190.77,10.59261274]
[1735616153284,20.0,190.85,190.76,10.59261274]
[1735616154115,20.0,190.85,190.75,12.90414035]
[1735616154309,20.0,190.85,190.75,12.11811274]
[1735616161604,20.0,190.85,190.76,10.59261274]
[1735616164417,2.6194,190.88,190.77,10.59261274]
[1735616164600,7.7626,190.89,190.79,10.59261274]
[1735616164910,20.0,190.86,190.79,10.59261274]
[1735616165800,20.0,190.86,190.78,10.59261274]
[1735616167092,20.0,190.86,190.77,10.59261274]
[1735616168298,20.0,190.86,190.75,12.11811274]
[1735616169420,20.0,190.86,190.76,10.59261274]
[1735616170718,20.0,190.86,190.75,12.9042591]
[1735616173024,20.0,190.86,190.75,12.11811274]
[1735616175023,20.0,190.86,190.73,10.59261274]
[1735616175616,20.0,190.82,190.73,10.59261274]
[1735616175923,20.0,190.82,190.71,10.59261274]
[1735616176317,26.6346,190.82,190.71,10.59261274]
[1735616176628,26.6346,190.82,190.7,12.90441189]
[1735616177003,26.6346,190.82,190.7,12.11811274]
[1735616179415,26.6346,190.82,190.71,11.37899567]
[1735616179622,26.6346,190.82,190.73,10.59261274]
[1735616180126,26.6346,190.82,190.74,10.59261274]
[1735616180330,26.6346,190.82,190.73,10.59261274]
[1735616180635,26.6346,190.82,190.71,24.48789567]
[1735616181727,26.6346,190.82,190.71,10.59261274]
[1735616182532,26.6346,190.82,190.69,0.78638367]
[1735616182701,26.6346,190.82,190.7,10.59261274]
[1735616182904,26.6346,190.82,190.71,10.59261274]
[1735616183335,26.6346,190.82,190.72,10.59261274]
[1735616183631,26.6346,190.82,190.72,11.37895092]
[1735616185610,26.6346,190.82,190.72,0.78633818]
[1735616185804,26.6346,190.82,190.72,11.37895092]
[1735616186734,26.6346,190.82,190.72,0.78633818]
[1735616188335,26.6346,190.82,190.72,11.37895092]
[1735616189611,26.6346,190.82,190.7,37.67265633]
[1735616189822,26.6346,190.82,190.7,0.78627233]
[1735616190617,26.6346,190.82,190.74,34.36949674]
[1735616190939,26.6346,190.82,190.75,0.7861534]
[1735616192615,26.6346,190.82,190.74,24.56307124]
[1735616193345,26.6346,190.82,190.74,35.15568398]
[1735616193538,6.6346,190.82,190.75,10.59261274]
[1735616193879,6.6346,190.82,190.76,0.78605838]
[1735616194440,6.6346,190.82,190.74,0.78612433]
[1735616196542,6.6346,190.82,190.74,11.37873707]
[1735616201448,6.6346,190.82,190.75,10.59261274]
[1735616201622,6.6346,190.82,190.76,11.37865153]
[1735616201947,1.6394,190.83,190.77,10.59261274]
[1735616202134,1.6394,190.83,190.78,0.78596619]
[1735616205859,1.6394,190.83,190.78,11.37857893]
[1735616206035,6.4584,190.87,190.81,10.59261274]
[1735616206362,1.5331,190.88,190.83,10.59261274]
[1735616206523,1.5331,190.88,190.84,0.7857189]
[1735616206922,6.4584,190.92,190.85,10.59261274]
[1735616207133,6.4584,190.92,190.87,10.59261274]
[1735616207337,6.4584,190.92,190.88,0.78561536]
[1735616208640,6.4584,190.92,190.86,0.78560953]
[1735616208941,6.4584,190.92,190.86,11.37822227]
[1735616211656,6.4584,190.96,190.9,10.59261274]
[1735616211826,6.4584,190.96,190.91,10.59261274]
[1735616212155,1.5331,190.98,190.93,10.59261274]
[1735616212331,1.5331,190.98,190.94,0.78533914]
[1735616213374,1.524,191.03,190.96,10.59261274]
[1735616213679,1.524,191.03,190.97,0.78519667]
[1735616214352,1.524,191.03,190.97,11.37780941]
[1735616215153,1.524,191.03,190.96,10.59261274]
[1735616216078,1.524,191.03,190.97,0.78526659]
[1735616216567,1.524,191.03,190.97,11.37787933]
[1735616218068,1.524,191.03,190.96,10.59261274]
[1735616218966,1.524,191.03,190.95,35.15470786]
[1735616219270,1.524,191.03,190.96,10.59261274]
[1735616221170,1.524,191.03,190.94,10.59261274]
[1735616222173,1.524,191.03,190.95,10.59261274]
[1735616223373,1.524,191.03,190.94,11.37792246]
[1735616223583,20.0,191.02,190.94,0.78530972]
[1735616223906,6.065,191.01,190.91,10.59261274]
[1735616224385,1.5721,190.97,190.9,10.59261274]
[1735616225180,1.5721,190.97,190.89,10.59261274]
[1735616225356,1.5721,190.97,190.9,10.59261274]
[1735616228985,1.5721,190.97,190.89,11.3781572]
[1735616229581,1.5721,190.97,190.9,10.59261274]
[1735616232577,1.5721,190.97,190.89,11.378168]
[1735616232982,6.6241,190.96,190.87,0.78557761]
[1735616233164,6.6241,190.96,190.87,11.37819035]
[1735616233480,6.6241,190.96,190.87,10.59261274]
[1735616234573,6.6241,190.96,190.88,10.59261274]
[1735616235069,6.6241,190.96,190.9,10.59261274]
[1735616236389,6.6241,190.96,190.9,11.37811066]
[1735616236891,6.6241,190.96,190.9,10.59261274]
[1735616237886,6.6241,190.96,190.89,11.37817293]
[1735616238389,6.6241,190.96,190.9,10.59261274]
[1735616242091,6.6241,190.96,190.85,23.69181274]
[1735616242290,6.6241,190.96,190.84,10.59261274]
[1735616242291,20.0,190.93,190.84,10.59261274]
[1735616242499,1.5007,190.92,190.84,10.59261274]
[1735616243171,6.566,190.91,190.83,11.37830918]
[1735616243582,6.566,190.91,190.84,10.59261274]
[1735616245008,6.566,190.91,190.85,10.59261274]
[1735616245297,6.566,190.91,190.88,10.59261274]
[1735616245597,6.566,190.91,190.86,10.59261274]
[1735616245893,6.566,190.91,190.87,10.59261274]
[1735616246070,6.566,190.91,190.88,11.3782559]
[1735616246270,6.566,190.91,190.87,10.59261274]
[1735616246894,6.566,190.91,190.88,10.59261274]
[1735616247091,1.5007,190.92,190.89,10.59261274]
[1735616247478,6.566,190.96,190.88,0.78557006]
[1735616247479,6.566,190.96,190.9,10.59261274]
[1735616247682,6.566,190.96,190.9,11.37813151]
[1735616248925,6.566,190.96,190.9,0.78551877]
[1735616249401,6.566,190.96,190.9,11.37813151]
[1735616250003,6.566,190.96,190.9,0.78551877]
[1735616251329,6.566,190.96,190.9,11.37821037]
[1735616257315,6.566,190.96,190.9,0.78559763]
[1735616265442,6.566,190.96,190.86,13.0984]
[1735616265612,6.566,190.96,190.87,0.78553769]
[1735616269438,6.566,190.96,190.88,23.776884]
[1735616269640,6.566,190.96,190.89,0.7855833]
[1735616271118,6.566,190.96,190.88,13.0967]
[1735616272943,6.566,190.96,190.89,0.78561723]
[1735616273739,6.566,190.96,190.89,11.37822997]
[1735616274253,6.566,190.96,190.9,23.776884]
[1735616274440,6.566,190.96,190.92,23.776884]
[1735616276142,6.566,190.96,190.91,0.78549484]
[1735616276347,6.566,190.96,190.89,0.78551828]
[1735616277151,6.566,190.96,190.87,8.942129]
[1735616277328,6.566,190.96,190.84,11.37827622]
[1735616277648,1.6453,190.95,190.85,10.59261274]
[1735616277849,1.6453,190.95,190.86,0.78566258]
[1735616279550,20.0,190.93,190.86,0.78566258]
[1735616279851,20.0,190.93,190.84,11.37832191]
[1735616280357,20.0,190.93,190.84,0.78570917]
[1735616280950,5.2346,191.04,190.78,0.78575541]
[1735616280951,6.0312,190.87,190.78,0.78575541]
[1735616281152,20.0,190.84,190.78,0.78575541]
[1735616281467,6.0312,190.82,190.72,0.7861522]
[1735616281749,6.0312,190.82,190.7,0.78630364]
[1735616282737,6.0312,190.82,190.73,65.25230178]
[1735616286130,6.0312,190.82,190.74,0.78624279]
[1735616294167,6.0312,190.82,190.75,47.47499674]
[1735616294466,6.0312,190.82,190.76,11.37864766]
[1735616294844,6.0312,190.82,190.77,23.776884]
[1735616295142,6.0312,190.82,190.78,0.78595893]
[1735616295970,6.0312,190.82,190.77,24.56288974]
[1735616296275,6.0312,190.82,190.78,23.776884]
[1735616297875,6.0312,190.82,190.75,20.0]
[1735616298868,6.0312,190.82,190.72,24.48673982]
[1735616299064,6.0312,190.82,190.72,13.89412708]
[1735616299369,1.6349,190.81,190.68,13.1103]
[1735616299575,1.6349,190.81,190.69,11.3789304]
[1735616300482,1.6349,190.81,190.7,23.776884]
[1735616300684,1.6349,190.81,190.71,0.78629651]
[1735616302165,1.6349,190.81,190.71,11.37890925]
[1735616303183,1.6349,190.81,190.71,0.78629651]
[1735616305389,9.82847738,190.81,190.71,0.78629651]
[1735616308479,8.19357738,190.8,190.71,0.78629651]
[1735616309581,9.82847738,190.81,190.71,0.78629651]
[1735616309876,9.82847738,190.81,190.71,11.37890925]
[1735616310888,1.6349,190.81,190.71,0.78629651]
[1735616311281,20.0,190.79,190.71,0.78629651]
[1735616311467,7.7008,190.78,190.69,0.78637067]
[1735616311960,7.7008,190.78,190.68,0.7864297]
[1735616312488,15.89437738,190.78,190.68,0.7864297]
[1735616312658,15.89437738,190.78,190.66,10.59261274]
[1735616312659,1.6168,190.77,190.66,10.59261274]
[1735616312856,6.084,190.76,190.66,0.78651662]
[1735616313262,1.6168,190.75,190.66,11.37912936]
[1735616314956,16.38715476,190.81,190.64,13.1135]
[1735616314957,6.084,190.74,190.64,13.89998293]
[1735616315163,1.6168,190.73,190.64,13.89998293]
[1735616318281,1.6168,190.73,190.61,13.1155]
[1735616318490,6.3949,190.72,190.61,13.1155]
[1735616318691,1.5878,190.71,190.61,13.90224457]
[1735616319186,6.3949,190.7,190.61,13.90224457]
[1735616320063,6.3949,190.7,190.59,0.78676641]
[1735616320471,1.5031,190.69,190.59,0.78676641]
[1735616321086,6.2695,190.68,190.59,0.78676641]
[1735616321256,6.2695,190.68,190.58,2.68975412]
[1735616321664,1.5031,190.67,190.58,2.68975412]
[1735616321878,1.5031,190.67,190.57,13.90467874]
[1735616322069,6.2695,190.66,190.54,13.1205]
[1735616322397,6.2695,190.64,190.54,13.1205]
[1735616322569,1.5031,190.63,190.55,2.69152994]
[1735616323489,1.5031,190.63,190.54,2.69152994]
[1735616324000,1.5031,190.63,190.53,2.69152994]
[1735616324665,1.5031,190.63,190.52,14.07120417]
[1735616324894,1.5031,190.63,190.53,47.49059674]
[1735616325075,1.5031,190.63,190.54,0.78696505]
[1735616325284,1.5031,190.63,190.53,13.1211]
[1735616325493,1.5031,190.63,190.53,13.90814626]
[1735616329317,6.2695,190.62,190.53,13.1211]
[1735616329489,1.5031,190.61,190.53,13.1211]
[1735616331530,1.5031,190.61,190.54,0.78704952]
[1735616336327,1.5031,190.61,190.53,13.90810754]
[1735616336495,1.5031,190.61,190.5,23.71581274]
[1735616336695,1.5031,190.61,190.51,0.78709459]
[1735616337523,1.5031,190.61,190.51,24.56397859]
[1735616337701,1.5031,190.61,190.48,10.59261274]
[1735616337906,1.5031,190.61,190.47,13.91249202]
[1735616337907,1.5331,190.59,190.49,0.78720175]
[1735616338314,6.6028,190.58,190.47,13.91262796]
[1735616338716,6.6028,190.58,190.47,37.68951196]
[1735616339519,1.5331,190.57,190.47,0.78722796]
[1735616339705,6.6028,190.56,190.46,0.78734082]
[1735616340621,1.5331,190.55,190.46,0.78734082]
[1735616340822,1.5331,190.55,190.45,0.78733582]
[1735616344622,1.5331,190.55,190.44,13.9147354]
[1735616344808,1.5331,190.51,190.41,10.59261274]
[1735616345005,1.5331,190.51,190.42,0.78749785]
[1735616345543,6.6028,190.5,190.38,11.38015348]
[1735616346821,6.6028,190.5,190.39,30.59261274]
[1735616347022,6.6028,190.5,190.4,0.78759625]
[1735616347222,1.5331,190.49,190.4,0.78759625]
[1735616347937,1.5331,190.49,190.39,20.78765125]
[1735616348142,6.2876,190.48,190.37,0.78765263]
[1735616348327,1.661,190.47,190.37,0.78765263]
[1735616348527,6.2876,190.46,190.36,13.1323]
[1735616348840,7.9486,190.44,190.32,13.92295254]
[1735616349046,7.9486,190.44,190.33,10.59261274]
[1735616349507,7.9486,190.44,190.34,0.78782621]
[1735616350242,7.9486,190.44,190.35,47.50299674]
[1735616350532,7.9486,190.44,190.35,13.1335]
[1735616352230,7.9486,190.44,190.36,0.7878103]
[1735616354845,7.9486,190.44,190.37,23.776884]
[1735616355041,7.9486,190.44,190.38,11.38024737]
[1735616355541,7.9486,190.44,190.38,0.78763463]
[1735616358546,1.661,190.44,190.42,10.59261274]
[1735616358743,1.661,190.48,190.43,0.78743831]
[1735616359069,1.661,190.48,190.44,23.776884]
[1735616359228,1.661,190.48,190.45,0.78732545]
[1735616360751,6.2876,190.49,190.45,11.37993819]
[1735616361747,6.2876,190.49,190.46,23.776884]
[1735616361952,6.2876,190.49,190.47,0.78728218]
[1735616362137,1.661,190.52,190.47,0.78728218]
[1735616362532,6.2876,190.54,190.5,10.59261274]
[1735616362730,6.2876,190.54,190.51,11.37972178]
[1735616363562,1.661,190.56,190.53,10.59261274]
[1735616363855,1.661,190.56,190.54,0.78695151]
[1735616364561,6.0142,190.59,190.54,17.36341139]
[1735616365544,6.0142,190.59,190.54,0.78695151]
[1735616367768,6.0142,190.59,190.54,17.36341139]
[1735616368236,6.0142,190.59,190.54,0.78695151]
[1735616369978,6.0142,190.59,190.49,16.57645988]
[1735616370260,6.0142,190.59,190.5,24.56406459]
[1735616371362,6.0142,190.59,190.5,0.78718059]
[1735616371548,6.0142,190.59,190.49,0.78718432]
[1735616372442,6.0142,190.59,190.48,37.36369965]
[1735616374852,6.0142,190.59,190.49,16.57645988]
[1735616375056,6.0142,190.59,190.5,0.78718417]
[1735616376056,6.0142,190.59,190.48,17.36369839]
[1735616377676,6.0142,190.59,190.48,0.78723851]
[1735616377843,6.0142,190.59,190.48,17.36369839]
[1735616378049,6.0142,190.59,190.49,40.35334388]
[1735616378258,6.0142,190.59,190.5,0.78712492]
[1735616378767,6.0142,190.59,190.48,17.36361363]
[1735616379262,6.0142,190.59,190.48,0.78715375]
[1735616379977,6.0142,190.59,190.48,17.36361363]
[1735616380469,1.5671,190.58,190.48,17.36361363]
[1735616381156,1.5671,190.58,190.48,0.78715375]
[1735616381461,1.5671,190.58,190.47,29.70125988]
[1735616381669,1.5671,190.58,190.47,13.1248]
[1735616381856,6.1495,190.56,190.46,16.57645988]
[1735616382064,6.1495,190.56,190.45,17.36384347]
[1735616383275,1.5671,190.55,190.45,17.36384347]
[1735616384269,1.5671,190.55,190.45,11.40495]
[1735616384486,1.5671,190.55,190.46,10.61756641]
[1735616384684,1.5671,190.55,190.47,0.78733447]
[1735616385688,1.5671,190.55,190.48,13.1247]
[1735616385886,1.5671,190.55,190.49,0.78725344]
[1735616386070,1.5671,190.55,190.45,23.74426641]
[1735616386275,6.1495,190.54,190.45,13.1267]
[1735616386665,1.5671,190.53,190.45,13.1267]
[1735616387078,1.5671,190.53,190.43,11.40504236]
[1735616388895,1.5671,190.53,190.43,0.78747595]
[1735616390395,1.5671,190.53,190.43,11.40504236]
[1735616393180,1.5671,190.53,190.44,10.61756641]
[1735616394898,1.5671,190.53,190.45,10.61756641]
[1735616396297,1.5671,190.53,190.44,10.61756641]
[1735616397293,1.5671,190.53,190.43,11.40504236]
[1735616397496,1.5671,190.53,190.44,10.61756641]
[1735616399900,1.5671,190.53,190.45,10.61756641]
[1735616400302,1.5671,190.53,190.45,11.4049279]
[1735616400807,1.5671,190.53,190.45,10.61756641]
[1735616401010,1.5671,190.53,190.44,37.69128684]
[1735616401011,1.5671,190.53,190.44,23.74456641]
[1735616401903,1.5671,190.53,190.44,13.127]
[1735616402106,1.5671,190.53,190.44,23.74456641]
[1735616405610,6.0621,190.52,190.44,23.74456641]
[1735616406380,6.0621,190.52,190.44,13.127]
[1735616407305,6.0621,190.52,190.44,23.74456641]
[1735616407504,6.0621,190.52,190.46,10.61756641]
[1735616407693,6.0621,190.52,190.45,11.40497976]
[1735616408092,6.0621,190.52,190.44,23.74456641]
[1735616408396,6.0621,190.52,190.44,13.127]
[1735616409606,6.0621,190.52,190.44,23.74456641]
[1735616410205,6.0621,190.52,190.44,13.127]
[1735616410510,6.0621,190.52,190.43,0.78747282]
[1735616410703,6.0621,190.52,190.42,10.61756641]
[1735616411891,8.19357738,190.5,190.42,10.61756641]
[1735616413580,1.6379,190.49,190.42,10.61756641]
[1735616414211,6.2845,190.48,190.41,13.1293]
[1735616414515,6.2845,190.48,190.39,10.61756641]
[1735616415214,14.47807738,190.48,190.39,10.61756641]
[1735616415418,14.47807738,190.48,190.4,11.40518901]
[1735616416012,6.2845,190.48,190.4,11.40518901]
[1735616417513,6.2845,190.48,190.41,30.61756641]
[1735616418104,6.2845,190.48,190.41,20.0]
[1735616419095,14.47807738,190.48,190.41,20.0]
[1735616420609,6.2845,190.48,190.41,20.0]
[1735616421115,6.2845,190.48,190.41,30.61756641]
[1735616421290,14.47807738,190.48,190.41,30.61756641]
[1735616421923,6.2845,190.48,190.41,30.61756641]
[1735616422516,6.2845,190.48,190.44,10.61756641]
[1735616422712,6.2845,190.48,190.46,10.61756641]
[1735616422887,9.83147738,190.49,190.46,10.61756641]
[1735616423420,9.83147738,190.49,190.46,23.74336641]
[1735616423605,1.6379,190.49,190.46,23.74336641]
[1735616423922,1.6379,190.49,190.45,11.4049511]
[1735616424221,1.6379,190.49,190.45,0.78738469]
[1735616424620,1.6379,190.49,190.44,11.40494524]
[1735616425223,1.6379,190.49,190.44,0.78737883]
[1735616425398,1.6379,190.49,190.42,10.61756641]
[1735616425721,1.6379,190.49,190.41,11.40511759]
[1735616426316,9.83147738,190.49,190.41,0.78755118]
[1735616426523,6.4377,190.48,190.39,10.61756641]
[1735616426725,6.4377,190.48,190.4,30.61756641]
[1735616427100,6.4377,190.48,190.41,11.40513141]
[1735616427401,14.63127738,190.48,190.41,11.40513141]
[1735616427601,14.63127738,190.48,190.4,30.61756641]
[1735616428929,8.19357738,190.47,190.4,30.61756641]
[1735616431327,8.19357738,190.47,190.39,10.61756641]
[1735616431527,8.19357738,190.46,190.39,10.61756641]
[1735616433131,8.19357738,190.46,190.41,23.776884]
[1735616433313,8.19357738,190.46,190.43,10.61756641]
[1735616434625,6.4377,190.48,190.43,11.40500478]
[1735616436651,6.4377,190.48,190.44,34.39445041]
[1735616436928,1.6379,190.49,190.44,34.39445041]
[1735616436929,8.19357738,190.5,190.48,23.776884]
[1735616437103,8.19357738,190.5,190.49,10.61756641]
[1735616437838,9.84057738,190.53,190.49,10.61756641]
[1735616438444,9.84057738,190.53,190.48,35.18169428]
[1735616438940,1.647,190.53,190.48,35.18169428]
[1735616439149,1.647,190.53,190.49,10.61756641]
[1735616439664,1.647,190.53,190.48,35.18169428]
[1735616439960,1.647,190.53,190.48,24.56412787]
[1735616440646,1.647,190.53,190.48,0.78724387]
[1735616440945,1.647,190.53,190.46,0.78732045]
[1735616441674,1.647,190.53,190.45,0.78737168]
[1735616442069,1.647,190.53,190.43,10.61756641]
[1735616442269,1.647,190.53,190.44,24.56431859]
[1735616442558,14.45917738,190.52,190.43,0.78743495]
[1735616442938,14.45917738,190.52,190.43,11.40500136]
[1735616443139,8.19357738,190.51,190.44,10.61756641]
[1735616443351,8.19357738,190.51,190.45,0.78740118]
[1735616443663,14.45917738,190.52,190.45,0.78740118]
[1735616444180,14.45917738,190.52,190.44,11.40498895]
[1735616445364,8.19357738,190.51,190.44,11.40498895]
[1735616445667,8.19357738,190.51,190.44,0.78742254]
[1735616446364,8.19357738,190.51,190.44,11.40498895]
[1735616446669,14.45917738,190.52,190.44,11.40498895]
[1735616448444,8.19357738,190.51,190.44,11.40498895]
[1735616448647,8.19357738,190.51,190.45,34.39445041]
[1735616448849,8.19357738,190.51,190.48,10.61756641]
[1735616449049,14.45917738,190.52,190.48,11.40478111]
[1735616450470,6.2656,190.52,190.48,11.40478111]
[1735616454472,6.2656,190.52,190.48,0.7872147]
[1735616456273,6.2656,190.52,190.48,11.40478111]
[1735616456469,1.647,190.53,190.49,10.61756641]
[1735616456699,1.647,190.53,190.49,11.40475273]
[1735616457448,6.5382,190.56,190.5,34.39445041]
[1735616457649,6.5382,190.56,190.51,11.40467553]
[1735616459380,6.5382,190.56,190.51,0.78710912]
[1735616461781,6.5382,190.56,190.48,10.61756641]
[1735616461981,6.5382,190.56,190.49,0.7872032]
[1735616463382,6.5382,190.56,190.49,11.40476961]
[1735616464691,6.5382,190.56,190.5,23.776884]
[1735616464867,6.5382,190.56,190.51,0.78712352]
[1735616465877,1.6119,190.57,190.51,0.78712352]
[1735616466087,1.6119,190.57,190.51,11.40468993]
[1735616466385,1.6119,190.57,190.52,10.61756641]
[1735616466590,8.19357738,190.6,190.55,10.61756641]
[1735616467086,8.19357738,190.6,190.54,24.52508067]
[1735616467258,8.19357738,190.6,190.54,11.40448067]
[1735616467456,8.19357738,190.6,190.54,0.78691426]
[1735616467684,8.19357738,190.6,190.52,11.40460469]
[1735616467858,8.19357738,190.6,190.52,0.78703828]
[1735616468175,8.1501,190.63,190.52,0.78703828]
[1735616468379,8.1501,190.63,190.52,11.40460469]
[1735616468984,8.19357738,190.62,190.52,11.40460469]
[1735616470089,8.19357738,190.62,190.5,10.61756641]
[1735616470090,20.0,190.59,190.5,10.61756641]
[1735616470276,1.6611,190.58,190.48,11.40475053]
[1735616470489,6.3682,190.57,190.48,0.78718412]
[1735616471703,6.3682,190.57,190.46,0.78730723]
[1735616472691,8.19357738,190.56,190.45,13.1267]
[1735616472861,8.19357738,190.56,190.44,11.40496885]
[1735616473375,8.19357738,190.56,190.45,23.776884]
[1735616473580,1.6611,190.52,190.43,0.78740425]
[1735616473987,1.6611,190.52,190.43,11.40497066]
[1735616474208,1.6611,190.52,190.44,10.61756641]
[1735616474364,21.6611,190.52,190.43,11.40497066]
[1735616474566,21.6611,190.52,190.42,10.61756641]
[1735616475062,20.0,190.51,190.42,10.61756641]
[1735616475259,20.0,190.51,190.43,0.78748271]
[1735616476205,20.0,190.51,190.43,11.40504912]
[1735616476685,21.6611,190.52,190.43,11.40504912]
[1735616476887,1.6611,190.52,190.45,10.61756641]
[1735616477101,1.6611,190.52,190.45,11.40490925]
[1735616477314,1.6611,190.52,190.46,10.61756641]
[1735616477499,1.6611,190.52,190.45,11.40490925]
[1735616478709,1.6611,190.52,190.45,0.78734284]
[1735616479509,1.6611,190.52,190.44,0.78739939]
[1735616479712,1.6611,190.52,190.42,11.40508223]
[1735616480415,6.3682,190.51,190.42,11.40508223]
[1735616482422,6.3682,190.51,190.42,0.78751582]
[1735616482618,6.3682,190.51,190.42,11.40508223]
[1735616482919,14.56177738,190.51,190.42,11.40508223]
[1735616483493,14.56177738,190.51,190.41,13.1292]
[1735616484420,8.19357738,190.5,190.41,13.1292]
[1735616484797,8.19357738,190.5,190.39,10.61756641]
[1735616485102,8.19357738,190.49,190.39,10.61756641]
[1735616486215,8.19357738,190.49,190.34,13.1343]
[1735616486216,7.8667,190.48,190.34,13.1343]
[1735616486408,7.8667,190.48,190.36,10.61756641]
[1735616486594,7.8667,190.48,190.35,11.40534888]
[1735616487518,8.19357738,190.46,190.35,11.40534888]
[1735616487724,8.19357738,190.46,190.36,10.61756641]
[1735616488221,8.19357738,190.45,190.36,10.61756641]
[1735616488617,7.8667,190.44,190.34,13.1343]
[1735616488914,7.8667,190.44,190.34,23.75186641]
[1735616490116,7.8667,190.44,190.35,10.61756641]
[1735616492418,7.8667,190.44,190.34,24.53968399]
[1735616496728,7.8667,190.44,190.35,34.39445041]
[1735616497727,7.8667,190.44,190.36,10.61756641]
[1735616500102,7.8667,190.44,190.35,35.18221528]
[1735616501229,7.8667,190.44,190.35,0.78776487]
[1735616501419,7.8667,190.44,190.33,10.61756641]
[1735616501770,2.625,190.48,190.31,0.78783586]
[1735616501771,8.0966,190.4,190.31,0.78783586]
[1735616501898,8.0966,190.4,190.3,13.1366]